{"text_format":"1","workbook":"xlsx","n_sheets":6,"sheets":["Instructions","RCP Calculator","OEL and TLV Values","Other (DO NOT MODIFY)","Raoult's law Calculator","Revision Log"],"not_rendered":{"charts":0,"images":0,"macros":1,"external_links":0,"defined_names":0,"comments":0,"pivot_tables":0},"unopened":[],"bounds":{"document_bytes":16777216,"sheet_cells":100000,"rows_first":2000,"rows_last":500,"rows_between":2000,"halvings":0,"cell_chars":16384,"cell_head_chars":4096},"cells_cut":0,"cells_raw":0,"read":"whole","date_system":"1900"}

{"sheet":"Instructions","index":0,"n_rows":14,"n_cols":2,"rows_kept":14,"cut":false,"hidden":false,"merged":[[13,1,13,17],[9,1,9,17],[10,1,10,17],[11,1,11,17],[8,1,8,17],[12,1,12,17],[7,1,7,17],[1,1,1,17],[2,1,2,17],[3,1,3,17],[4,1,4,17],[5,1,5,17],[6,1,6,17]]}
[]
["Column C","Select the source of the TLV or OEL desired from the drop down menu. \n\nNOTE: If there is no value for the source selected, the cell will turn red. In this case, it is recommended the group guidance value be used if provided by the source. \n\nFor example, the German AGS does not have an individal TLV value for cyclopentane. In this case, it is recommended the German AGS C5 - C6 Aliphatics Group Guidance Value, GGV,  (1500 mg/m3) be used for cyclopentane (enter the % fraction of cyclopentane in the GGV row). If the source selected does not have an individual or GGV, it is recommended the HSPA GGV be used. "]
["Column D","DO NOT MODIFY. The TLV or OEL for the source selected will automatically populate Column D. \n\nNOTE: If a Company Modified or Derived OEL is to be used, enter the value for the chemical in the appropriate row in the \"OEL and TLV Values\" spreadsheet."]
["Column E","Enter the Liquid Fraction (%) for the individual chemical or GGV."]
["Column F","DO NOT MODIFY. Spreadsheet automatically calculates Reciprocal Calculation (Fa/OELa). "]
["\"Preferred Source\" Button\n(Columns H-J)","The \"Preferred Source\" button will set all TLV or OEL values to one source (e.g. all will be set to ACGIH). Individual chemicals or GGVS can be modified as needed. \n\nNOTE: The \"Preferred Source\" button will NOT reset Liquid Fraction values."]
["\"Reset\" Button\n(Columns H-J)","The \"Reset\" button will set all TLV or OEL values to the ACGIH TLVs, delete all Liquid Fraction values, and delete the MW data (Row 40, Column E-F). \n\nNOTE: Reset button will NOT delete any Company Specific Values entered. "]
["Additional Chemical or Company Specific TLVs or OELs, if Applicable\n(Rows 33-37)","If you want to add a chemical TLV or OEL that is not covered and the GGV is not appropriate, individual information can be added here. Information entered here will be included in the RCP OEL calculation automatically. "]
["Total Component (%)\n(Row 39)","DO NOT MODIFY. Total Component (%) will automatically populate\n\nNOTE: This number should be 100%"]
["MW data \n(Row 40, Column E-F)","Enter the Molecular Weight (MW) of the product if ppm (at standard room and temperature) is desired. "]
["Calculated RCP OEL\nRow 43","DO NOT MODIFY. The spreadsheet will automatically calculate the RCP OEL from the data entered."]
["ACGIH Rounded RCP OEL\nRow 44","DO NOT MODIFY. The spreadsheet will automatically calculate the RCP OEL using the ACGIH Rounding Rules. \n\nNOTE: If the calculated RCP OEL is less than 12.5 mg/m3, the number will not be rounded and will be the actual calculated RCP OEL instead. (e.g. 13 mg/m3 will be rounded to 25 mg/ m3, but 11mg/m3 will remain 11 mg/m3). "]
["OEL and TLV Values\nSpreadsheet","This spreadsheet contains the OEL and TLV data for various jurisdictions and authoritative bodies. \n\nNOTE: The only values you should need to change are the \"Company Modified or Derived OEL \" Values (if you have a company calculated OEL value). "]
["Raoult's Law Calculator","This spreadsheet contains formula for calculating the ambient air concentration of a constituent of a complex solvent/blend.  \n\nNOTE: Both the vapor pressure of constituent and blend/complex solvent MUST BE at the same temperature. Note also that only vapor pressures in the kPa unit are allowed at this point."]

{"sheet":"RCP Calculator","index":1,"n_rows":48,"n_cols":8,"rows_kept":48,"cut":false,"hidden":false,"merged":[[40,4,40,5],[2,0,2,1],[8,0,8,1],[12,0,12,1],[15,0,15,1],[19,0,19,1],[32,0,32,2],[1,7,1,9],[16,7,17,9],[2,7,13,9],[47,2,47,5],[41,1,41,3],[42,1,42,3],[43,1,43,3],[44,0,44,5],[45,2,45,5],[46,2,46,5],[37,0,37,5],[38,1,38,3],[38,4,38,5],[39,1,39,3],[39,4,39,5],[40,1,40,3]]}
[]
["Hydrocarbon Group","Individual Constituents\n(if applicable)","Source of \nTLV or OEL","TLV / OEL\n(mg/m3)","Liquid \nFraction \n(%)","Reciprocal Calculation\n(Fa/OELa)",null,"Preferred Source\n(Sets ALL Values to Source)"]
["C5 - C6 Aliphatics Group Guidance Value",null,null,{"$f":"IF('Other (DO NOT MODIFY)'!C2=1,'OEL and TLV Values'!D2)+IF('Other (DO NOT MODIFY)'!C2=2,'OEL and TLV Values'!E2)+IF('Other (DO NOT MODIFY)'!C2=3,'OEL and TLV Values'!F2)+IF('Other (DO NOT MODIFY)'!C2=4,'OEL and TLV Values'!G2)+IF('Other (DO NOT MODIFY)'!C2=5,'OEL and TLV Values'!H2)+IF('Other (DO NOT MODIFY)'!C2=6,'OEL and TLV Values'!I2)+IF('Other (DO NOT MODIFY)'!C2=7,0)","v":1500},null,{"$f":"IF(OR(D3=0,E3=0),\"\",(E3/100)/D3)","v":""}]
[null,"Pentane, All Isomers",null,{"$f":"IF('Other (DO NOT MODIFY)'!C3=1,'OEL and TLV Values'!D3)+IF('Other (DO NOT MODIFY)'!C3=2,'OEL and TLV Values'!E3)+IF('Other (DO NOT MODIFY)'!C3=3,'OEL and TLV Values'!F3)+IF('Other (DO NOT MODIFY)'!C3=4,'OEL and TLV Values'!G3)+IF('Other (DO NOT MODIFY)'!C3=5,'OEL and TLV Values'!H3)+IF('Other (DO NOT MODIFY)'!C3=6,'OEL and TLV Values'!I3)+IF('Other (DO NOT MODIFY)'!C3=7,0)","v":2950},null,{"$f":"IF(OR(D4=0,E4=0),\"\",(E4/100)/D4)","v":""}]
[null,"Cyclopentane",null,{"$f":"IF('Other (DO NOT MODIFY)'!C4=1,'OEL and TLV Values'!D4)+IF('Other (DO NOT MODIFY)'!C4=2,'OEL and TLV Values'!E4)+IF('Other (DO NOT MODIFY)'!C4=3,'OEL and TLV Values'!F4)+IF('Other (DO NOT MODIFY)'!C4=4,'OEL and TLV Values'!G4)+IF('Other (DO NOT MODIFY)'!C4=5,'OEL and TLV Values'!H4)+IF('Other (DO NOT MODIFY)'!C4=6,'OEL and TLV Values'!I4)+IF('Other (DO NOT MODIFY)'!C4=7,0)","v":1720},null,{"$f":"IF(OR(D5=0,E5=0),\"\",(E5/100)/D5)","v":""}]
[null,"Hexane, isomers, except n-hexane",null,{"$f":"IF('Other (DO NOT MODIFY)'!C5=1,'OEL and TLV Values'!D5)+IF('Other (DO NOT MODIFY)'!C5=2,'OEL and TLV Values'!E5)+IF('Other (DO NOT MODIFY)'!C5=3,'OEL and TLV Values'!F5)+IF('Other (DO NOT MODIFY)'!C5=4,'OEL and TLV Values'!G5)+IF('Other (DO NOT MODIFY)'!C5=5,'OEL and TLV Values'!H5)+IF('Other (DO NOT MODIFY)'!C5=6,'OEL and TLV Values'!I5)+IF('Other (DO NOT MODIFY)'!C5=7,0)","v":1760},null,{"$f":"IF(OR(D6=0,E6=0),\"\",(E6/100)/D6)","v":""}]
[null,"Cyclohexane",null,{"$f":"IF('Other (DO NOT MODIFY)'!C6=1,'OEL and TLV Values'!D6)+IF('Other (DO NOT MODIFY)'!C6=2,'OEL and TLV Values'!E6)+IF('Other (DO NOT MODIFY)'!C6=3,'OEL and TLV Values'!F6)+IF('Other (DO NOT MODIFY)'!C6=4,'OEL and TLV Values'!G6)+IF('Other (DO NOT MODIFY)'!C6=5,'OEL and TLV Values'!H6)+IF('Other (DO NOT MODIFY)'!C6=6,'OEL and TLV Values'!I6)+IF('Other (DO NOT MODIFY)'!C6=7,0)","v":350},null,""]
[null,"n-Hexane",null,{"$f":"IF('Other (DO NOT MODIFY)'!C7=1,'OEL and TLV Values'!D7)+IF('Other (DO NOT MODIFY)'!C7=2,'OEL and TLV Values'!E7)+IF('Other (DO NOT MODIFY)'!C7=3,'OEL and TLV Values'!F7)+IF('Other (DO NOT MODIFY)'!C7=4,'OEL and TLV Values'!G7)+IF('Other (DO NOT MODIFY)'!C7=5,'OEL and TLV Values'!H7)+IF('Other (DO NOT MODIFY)'!C7=6,'OEL and TLV Values'!I7)+IF('Other (DO NOT MODIFY)'!C7=7,0)","v":176},null,""]
["C7 - C8 Aliphatics Group Guidance Value",null,null,{"$f":"IF('Other (DO NOT MODIFY)'!C8=1,'OEL and TLV Values'!D8)+IF('Other (DO NOT MODIFY)'!C8=2,'OEL and TLV Values'!E8)+IF('Other (DO NOT MODIFY)'!C8=3,'OEL and TLV Values'!F8)+IF('Other (DO NOT MODIFY)'!C8=4,'OEL and TLV Values'!G8)+IF('Other (DO NOT MODIFY)'!C8=5,'OEL and TLV Values'!H8)+IF('Other (DO NOT MODIFY)'!C8=6,'OEL and TLV Values'!I8)+IF('Other (DO NOT MODIFY)'!C8=7,0)","v":1500},null,""]
[null,"Heptane, all isomers",null,{"$f":"IF('Other (DO NOT MODIFY)'!C9=1,'OEL and TLV Values'!D9)+IF('Other (DO NOT MODIFY)'!C9=2,'OEL and TLV Values'!E9)+IF('Other (DO NOT MODIFY)'!C9=3,'OEL and TLV Values'!F9)+IF('Other (DO NOT MODIFY)'!C9=4,'OEL and TLV Values'!G9)+IF('Other (DO NOT MODIFY)'!C9=5,'OEL and TLV Values'!H9)+IF('Other (DO NOT MODIFY)'!C9=6,'OEL and TLV Values'!I9)+IF('Other (DO NOT MODIFY)'!C9=7,0)","v":1640},null,""]
[null,"Methyl cyclohexane",null,{"$f":"IF('Other (DO NOT MODIFY)'!C10=1,'OEL and TLV Values'!D10)+IF('Other (DO NOT MODIFY)'!C10=2,'OEL and TLV Values'!E10)+IF('Other (DO NOT MODIFY)'!C10=3,'OEL and TLV Values'!F10)+IF('Other (DO NOT MODIFY)'!C10=4,'OEL and TLV Values'!G10)+IF('Other (DO NOT MODIFY)'!C10=5,'OEL and TLV Values'!H10)+IF('Other (DO NOT MODIFY)'!C10=6,'OEL and TLV Values'!I10)+IF('Other (DO NOT MODIFY)'!C10=7,0)","v":1610},null,""]
[null,"Octane, all isomers",null,{"$f":"IF('Other (DO NOT MODIFY)'!C11=1,'OEL and TLV Values'!D11)+IF('Other (DO NOT MODIFY)'!C11=2,'OEL and TLV Values'!E11)+IF('Other (DO NOT MODIFY)'!C11=3,'OEL and TLV Values'!F11)+IF('Other (DO NOT MODIFY)'!C11=4,'OEL and TLV Values'!G11)+IF('Other (DO NOT MODIFY)'!C11=5,'OEL and TLV Values'!H11)+IF('Other (DO NOT MODIFY)'!C11=6,'OEL and TLV Values'!I11)+IF('Other (DO NOT MODIFY)'!C11=7,0)","v":1401},null,""]
["C9 - C15 Aliphatics Group Guidance Value",null,null,{"$f":"IF('Other (DO NOT MODIFY)'!C12=1,'OEL and TLV Values'!D12)+IF('Other (DO NOT MODIFY)'!C12=2,'OEL and TLV Values'!E12)+IF('Other (DO NOT MODIFY)'!C12=3,'OEL and TLV Values'!F12)+IF('Other (DO NOT MODIFY)'!C12=4,'OEL and TLV Values'!G12)+IF('Other (DO NOT MODIFY)'!C12=5,'OEL and TLV Values'!H12)+IF('Other (DO NOT MODIFY)'!C12=6,'OEL and TLV Values'!I12)+IF('Other (DO NOT MODIFY)'!C12=7,0)","v":1200},null,""]
[null,"n-Nonane",null,{"$f":"IF('Other (DO NOT MODIFY)'!C13=1,'OEL and TLV Values'!D13)+IF('Other (DO NOT MODIFY)'!C13=2,'OEL and TLV Values'!E13)+IF('Other (DO NOT MODIFY)'!C13=3,'OEL and TLV Values'!F13)+IF('Other (DO NOT MODIFY)'!C13=4,'OEL and TLV Values'!G13)+IF('Other (DO NOT MODIFY)'!C13=5,'OEL and TLV Values'!H13)+IF('Other (DO NOT MODIFY)'!C13=6,'OEL and TLV Values'!I13)+IF('Other (DO NOT MODIFY)'!C13=7,0)","v":1050},null,""]
[null,"Decalin",null,{"$f":"IF('Other (DO NOT MODIFY)'!C14=1,'OEL and TLV Values'!D14)+IF('Other (DO NOT MODIFY)'!C14=2,'OEL and TLV Values'!E14)+IF('Other (DO NOT MODIFY)'!C14=3,'OEL and TLV Values'!F14)+IF('Other (DO NOT MODIFY)'!C14=4,'OEL and TLV Values'!G14)+IF('Other (DO NOT MODIFY)'!C14=5,'OEL and TLV Values'!H14)+IF('Other (DO NOT MODIFY)'!C14=6,'OEL and TLV Values'!I14)+IF('Other (DO NOT MODIFY)'!C14=7,0)","v":0},null,""]
["C7 - C8 Aromatics Group Guidance Value",null,null,{"$f":"IF('Other (DO NOT MODIFY)'!C15=1,'OEL and TLV Values'!D15)+IF('Other (DO NOT MODIFY)'!C15=2,'OEL and TLV Values'!E15)+IF('Other (DO NOT MODIFY)'!C15=3,'OEL and TLV Values'!F15)+IF('Other (DO NOT MODIFY)'!C15=4,'OEL and TLV Values'!G15)+IF('Other (DO NOT MODIFY)'!C15=5,'OEL and TLV Values'!H15)+IF('Other (DO NOT MODIFY)'!C15=6,'OEL and TLV Values'!I15)+IF('Other (DO NOT MODIFY)'!C15=7,0)","v":200},null,""]
[null,"Toluene",null,{"$f":"IF('Other (DO NOT MODIFY)'!C16=1,'OEL and TLV Values'!D16)+IF('Other (DO NOT MODIFY)'!C16=2,'OEL and TLV Values'!E16)+IF('Other (DO NOT MODIFY)'!C16=3,'OEL and TLV Values'!F16)+IF('Other (DO NOT MODIFY)'!C16=4,'OEL and TLV Values'!G16)+IF('Other (DO NOT MODIFY)'!C16=5,'OEL and TLV Values'!H16)+IF('Other (DO NOT MODIFY)'!C16=6,'OEL and TLV Values'!I16)+IF('Other (DO NOT MODIFY)'!C16=7,0)","v":75},null,""]
[null,"Xylene, all isomers",null,{"$f":"IF('Other (DO NOT MODIFY)'!C17=1,'OEL and TLV Values'!D17)+IF('Other (DO NOT MODIFY)'!C17=2,'OEL and TLV Values'!E17)+IF('Other (DO NOT MODIFY)'!C17=3,'OEL and TLV Values'!F17)+IF('Other (DO NOT MODIFY)'!C17=4,'OEL and TLV Values'!G17)+IF('Other (DO NOT MODIFY)'!C17=5,'OEL and TLV Values'!H17)+IF('Other (DO NOT MODIFY)'!C17=6,'OEL and TLV Values'!I17)+IF('Other (DO NOT MODIFY)'!C17=7,0)","v":434},null,""]
[null,"Ethyl benzene",null,{"$f":"IF('Other (DO NOT MODIFY)'!C18=1,'OEL and TLV Values'!D18)+IF('Other (DO NOT MODIFY)'!C18=2,'OEL and TLV Values'!E18)+IF('Other (DO NOT MODIFY)'!C18=3,'OEL and TLV Values'!F18)+IF('Other (DO NOT MODIFY)'!C18=4,'OEL and TLV Values'!G18)+IF('Other (DO NOT MODIFY)'!C18=5,'OEL and TLV Values'!H18)+IF('Other (DO NOT MODIFY)'!C18=6,'OEL and TLV Values'!I18)+IF('Other (DO NOT MODIFY)'!C18=7,0)","v":87},null,""]
["C9 - C15 Aromatics Group Guidance Value",null,null,{"$f":"IF('Other (DO NOT MODIFY)'!C19=1,'OEL and TLV Values'!D19)+IF('Other (DO NOT MODIFY)'!C19=2,'OEL and TLV Values'!E19)+IF('Other (DO NOT MODIFY)'!C19=3,'OEL and TLV Values'!F19)+IF('Other (DO NOT MODIFY)'!C19=4,'OEL and TLV Values'!G19)+IF('Other (DO NOT MODIFY)'!C19=5,'OEL and TLV Values'!H19)+IF('Other (DO NOT MODIFY)'!C19=6,'OEL and TLV Values'!I19)+IF('Other (DO NOT MODIFY)'!C19=7,0)","v":100},null,""]
[null,"Trimethyl benzene, all isomers",null,{"$f":"IF('Other (DO NOT MODIFY)'!C20=1,'OEL and TLV Values'!D20)+IF('Other (DO NOT MODIFY)'!C20=2,'OEL and TLV Values'!E20)+IF('Other (DO NOT MODIFY)'!C20=3,'OEL and TLV Values'!F20)+IF('Other (DO NOT MODIFY)'!C20=4,'OEL and TLV Values'!G20)+IF('Other (DO NOT MODIFY)'!C20=5,'OEL and TLV Values'!H20)+IF('Other (DO NOT MODIFY)'!C20=6,'OEL and TLV Values'!I20)+IF('Other (DO NOT MODIFY)'!C20=7,0)","v":123},null,""]
[null,"Naphthalene",null,{"$f":"IF('Other (DO NOT MODIFY)'!C21=1,'OEL and TLV Values'!D21)+IF('Other (DO NOT MODIFY)'!C21=2,'OEL and TLV Values'!E21)+IF('Other (DO NOT MODIFY)'!C21=3,'OEL and TLV Values'!F21)+IF('Other (DO NOT MODIFY)'!C21=4,'OEL and TLV Values'!G21)+IF('Other (DO NOT MODIFY)'!C21=5,'OEL and TLV Values'!H21)+IF('Other (DO NOT MODIFY)'!C21=6,'OEL and TLV Values'!I21)+IF('Other (DO NOT MODIFY)'!C21=7,0)","v":52},null,""]
[null,"Cumene",null,{"$f":"IF('Other (DO NOT MODIFY)'!C22=1,'OEL and TLV Values'!D22)+IF('Other (DO NOT MODIFY)'!C22=2,'OEL and TLV Values'!E22)+IF('Other (DO NOT MODIFY)'!C22=3,'OEL and TLV Values'!F22)+IF('Other (DO NOT MODIFY)'!C22=4,'OEL and TLV Values'!G22)+IF('Other (DO NOT MODIFY)'!C22=5,'OEL and TLV Values'!H22)+IF('Other (DO NOT MODIFY)'!C22=6,'OEL and TLV Values'!I22)+IF('Other (DO NOT MODIFY)'!C22=7,0)","v":246},null,""]
[null,"1- and 2 -methyl naphthalene",null,{"$f":"IF('Other (DO NOT MODIFY)'!C23=1,'OEL and TLV Values'!D23)+IF('Other (DO NOT MODIFY)'!C23=2,'OEL and TLV Values'!E23)+IF('Other (DO NOT MODIFY)'!C23=3,'OEL and TLV Values'!F23)+IF('Other (DO NOT MODIFY)'!C23=4,'OEL and TLV Values'!G23)+IF('Other (DO NOT MODIFY)'!C23=5,'OEL and TLV Values'!H23)+IF('Other (DO NOT MODIFY)'!C23=6,'OEL and TLV Values'!I23)+IF('Other (DO NOT MODIFY)'!C23=7,0)","v":3},null,""]
[null,"Diethyl benzenes (AIHA WEEL)*",null,{"$f":"IF('Other (DO NOT MODIFY)'!C24=1,'OEL and TLV Values'!D24)+IF('Other (DO NOT MODIFY)'!C24=2,'OEL and TLV Values'!E24)+IF('Other (DO NOT MODIFY)'!C24=3,'OEL and TLV Values'!F24)+IF('Other (DO NOT MODIFY)'!C24=4,'OEL and TLV Values'!G24)+IF('Other (DO NOT MODIFY)'!C24=5,'OEL and TLV Values'!H24)+IF('Other (DO NOT MODIFY)'!C24=6,'OEL and TLV Values'!I24)+IF('Other (DO NOT MODIFY)'!C24=7,0)","v":28},null,""]
[null,"Tetralin",null,{"$f":"IF('Other (DO NOT MODIFY)'!C25=1,'OEL and TLV Values'!D25)+IF('Other (DO NOT MODIFY)'!C25=2,'OEL and TLV Values'!E25)+IF('Other (DO NOT MODIFY)'!C25=3,'OEL and TLV Values'!F25)+IF('Other (DO NOT MODIFY)'!C25=4,'OEL and TLV Values'!G25)+IF('Other (DO NOT MODIFY)'!C25=5,'OEL and TLV Values'!H25)+IF('Other (DO NOT MODIFY)'!C25=6,'OEL and TLV Values'!I25)+IF('Other (DO NOT MODIFY)'!C25=7,0)","v":0},null,""]
[null,"n-butylbenzene",null,{"$f":"IF('Other (DO NOT MODIFY)'!C26=1,'OEL and TLV Values'!D26)+IF('Other (DO NOT MODIFY)'!C26=2,'OEL and TLV Values'!E26)+IF('Other (DO NOT MODIFY)'!C26=3,'OEL and TLV Values'!F26)+IF('Other (DO NOT MODIFY)'!C26=4,'OEL and TLV Values'!G26)+IF('Other (DO NOT MODIFY)'!C26=5,'OEL and TLV Values'!H26)+IF('Other (DO NOT MODIFY)'!C26=6,'OEL and TLV Values'!I26)+IF('Other (DO NOT MODIFY)'!C26=7,0)","v":0},null,""]
[null,"Acenaphthene",null,{"$f":"IF('Other (DO NOT MODIFY)'!C27=1,'OEL and TLV Values'!D27)+IF('Other (DO NOT MODIFY)'!C27=2,'OEL and TLV Values'!E27)+IF('Other (DO NOT MODIFY)'!C27=3,'OEL and TLV Values'!F27)+IF('Other (DO NOT MODIFY)'!C27=4,'OEL and TLV Values'!G27)+IF('Other (DO NOT MODIFY)'!C27=5,'OEL and TLV Values'!H27)+IF('Other (DO NOT MODIFY)'!C27=6,'OEL and TLV Values'!I27)+IF('Other (DO NOT MODIFY)'!C27=7,0)","v":0},null,""]
[null,"Acenaphthylene",null,{"$f":"IF('Other (DO NOT MODIFY)'!C28=1,'OEL and TLV Values'!D28)+IF('Other (DO NOT MODIFY)'!C28=2,'OEL and TLV Values'!E28)+IF('Other (DO NOT MODIFY)'!C28=3,'OEL and TLV Values'!F28)+IF('Other (DO NOT MODIFY)'!C28=4,'OEL and TLV Values'!G28)+IF('Other (DO NOT MODIFY)'!C28=5,'OEL and TLV Values'!H28)+IF('Other (DO NOT MODIFY)'!C28=6,'OEL and TLV Values'!I28)+IF('Other (DO NOT MODIFY)'!C28=7,0)","v":0},null,""]
[null,"Biphenyl",null,{"$f":"IF('Other (DO NOT MODIFY)'!C29=1,'OEL and TLV Values'!D29)+IF('Other (DO NOT MODIFY)'!C29=2,'OEL and TLV Values'!E29)+IF('Other (DO NOT MODIFY)'!C29=3,'OEL and TLV Values'!F29)+IF('Other (DO NOT MODIFY)'!C29=4,'OEL and TLV Values'!G29)+IF('Other (DO NOT MODIFY)'!C29=5,'OEL and TLV Values'!H29)+IF('Other (DO NOT MODIFY)'!C29=6,'OEL and TLV Values'!I29)+IF('Other (DO NOT MODIFY)'!C29=7,0)","v":0},null,""]
[null,"Indene",null,{"$f":"IF('Other (DO NOT MODIFY)'!C30=1,'OEL and TLV Values'!D30)+IF('Other (DO NOT MODIFY)'!C30=2,'OEL and TLV Values'!E30)+IF('Other (DO NOT MODIFY)'!C30=3,'OEL and TLV Values'!F30)+IF('Other (DO NOT MODIFY)'!C30=4,'OEL and TLV Values'!G30)+IF('Other (DO NOT MODIFY)'!C30=5,'OEL and TLV Values'!H30)+IF('Other (DO NOT MODIFY)'!C30=6,'OEL and TLV Values'!I30)+IF('Other (DO NOT MODIFY)'!C30=7,0)","v":0},null,""]
[null,"Fluorene",null,{"$f":"IF('Other (DO NOT MODIFY)'!C31=1,'OEL and TLV Values'!D31)+IF('Other (DO NOT MODIFY)'!C31=2,'OEL and TLV Values'!E31)+IF('Other (DO NOT MODIFY)'!C31=3,'OEL and TLV Values'!F31)+IF('Other (DO NOT MODIFY)'!C31=4,'OEL and TLV Values'!G31)+IF('Other (DO NOT MODIFY)'!C31=5,'OEL and TLV Values'!H31)+IF('Other (DO NOT MODIFY)'!C31=6,'OEL and TLV Values'!I31)+IF('Other (DO NOT MODIFY)'!C31=7,0)","v":0},null,""]
["Additional Chemical or Company Specific TLVs or OELs, if Applicable",null,null,null,null,""]
[null,"Other Chemical 1","Enter Values",null,null,""]
[null,"Other Chemical 2","Enter Values",null,null,""]
[null,"Other Chemical 3","Enter Values",null,null,""]
[null,"Other Chemical 4","Enter Values",null,null,""]
["Calculations and Other Data"]
[null,"Total Component (%)",null,null,{"$f":"SUM(E3:E32,E34:E37)","v":0}]
[null,"Molecular Weight of Product"]
[]
[null,null,null,null,"mg/m3","ppm"]
[null,"Calculated RCP OEL",null,null,{"$f":"1/SUM(F3:F37)","v":{"$error":"#DIV/0!"}},{"$f":"E43*(24.45/E40)","v":{"$error":"#DIV/0!"}}]
[null,"ACGIH Rounded RCP OEL",null,null,{"$f":"IF(E43<12.5,E43,IF(E43<100,MROUND(E43,25),IF(E43<=600,MROUND(E43,50),IF(E43>600,MROUND(E43,200),FALSE))))","v":{"$error":"#DIV/0!"}},{"$f":"E44*(24.45/E40)","v":{"$error":"#DIV/0!"}}]
["ACGIH Rounding Rules"]
[null,"OEL < 100 mg/m3","Nearest 25"]
[null,"OEL = 100 - 600 mg/m3","Nearest 50"]
[null,"OEL > 600 mg/m3","Nearest 200"]

{"sheet":"OEL and TLV Values","index":2,"n_rows":33,"n_cols":9,"rows_kept":33,"cut":false,"hidden":false,"merged":[[1,0,1,1],[7,0,7,1],[11,0,11,1],[14,0,14,1],[18,0,18,1]]}
["Hydrocarbon Group","Individual Constituents\n(if applicable)","Referenced CAS #","ACGIH TLV\n(mg/m3)","German AGS \n(mg/m3)","German MAK \n(mg/m3)","SCOEL \n(mg/m3)","HSPA Recommendation \n(mg/m3)","Revised Recommendations  (mg/m3)"]
["C5 - C6 Aliphatics Group Guidance Value",null,null,1500,700,null,null,1400,1400]
[null,"Pentane, All Isomers","78-78-4; 109-66-0; 463-82-1",2950,null,3000,3000]
[null,"Cyclopentane","287-92-3",1720]
[null,"Hexane, isomers, \nexcluding n-hexane","75-83-2; 75-29-8; 107-83-5; 96-14-0",1760,700,1800]
[null,"Cyclohexane","110-82-7",350,700,700,700,700,350]
[null,"n-Hexane","110-54-3",176,180,180,72,72,176]
["C7 - C8 Aliphatics Group Guidance Value",null,null,1500,700,null,null,1400,1400]
[null,"Heptane, all isomers","142-82-5; 590-35-2; 565-59-3; 108-08-7; 591-76-4; 589-34-4",1640,700,2100,2085]
[null,"Methyl cyclohexane","108-87-2",1610,700,810,null,810,1610]
[null,"Octane, all isomers","111-65-9",1401,700,2400]
["C9 - C15 Aliphatics Group Guidance Value",null,null,1200,300,null,null,1050,1050]
[null,"n-Nonane","111-84-2",1050,300]
[null,"Decalin","91-17-8",null,29,29,null,29]
["C7 - C8 Aromatics Group Guidance Value",null,null,200]
[null,"Toluene","108-88-3",75,null,190,192,192,75]
[null,"Xylene, all isomers","1330-20-7; 95-47-6; 108-38-3; 106-42-3",434,null,440,221,221,434]
[null,"Ethyl benzene","100-41-4",87,null,88,null,88,87]
["C9 - C15 Aromatics Group Guidance Value",null,null,100,50,null,null,100,100]
[null,"Trimethyl benzene, all isomers","25551-13-7; 526-73-8; 95-63-6; 108-67-8",123,50,100,100]
[null,"Naphthalene","91-20-3",52,null,2,null,52,52]
[null,"Cumene","98-82-8",246,50,50,100]
[null,"1- and 2 -methyl naphthalene","90-12-0; 91-57-6",3,null,null,null,52,52]
[null,"Diethyl benzenes (AIHA WEEL)","25340-17-4",28,null,null,null,28,28]
[null,"Tetralin","119-64-2"]
[null,"n-butylbenzene","104-51-8"]
[null,"Acenaphthene","83-32-9"]
[null,"Acenaphthylene","208-96-8"]
[null,"Biphenyl","92-52-4",null,null,null,null,1.3,1.3]
[null,"Indene","95-13-6",null,null,null,null,24,24]
[null,"Fluorene","86-73-7"]
[]
["Equation",{"$f":"IF('Other (DO NOT MODIFY)'!C3=1,'OEL and TLV Values'!D3)+IF('Other (DO NOT MODIFY)'!C3=2,'OEL and TLV Values'!E3)+IF('Other (DO NOT MODIFY)'!C3=3,'OEL and TLV Values'!F3)+IF('Other (DO NOT MODIFY)'!C3=4,'OEL and TLV Values'!G3)+IF('Other (DO NOT MODIFY)'!C3=5,'OEL and TLV Values'!H3)+IF('Other (DO NOT MODIFY)'!C3=6,'OEL and TLV Values'!I3)","v":2950},null,null,null,null,null," "]

{"sheet":"Other (DO NOT MODIFY)","index":3,"n_rows":36,"n_cols":4,"rows_kept":36,"cut":false,"hidden":false,"merged":[[31,0,31,1],[1,0,1,1],[7,0,7,1],[11,0,11,1],[14,0,14,1],[18,0,18,1]]}
["Hydrocarbon Group","Individual Constituents\n(if applicable)","Selected TLV Source Value","TLV or OEL Source"]
["C5 - C6 Aliphatics Group Guidance Value",null,1,"ACGIH"]
[null,"Pentane, All Isomers",1,"German AGS"]
[null,"Cyclopentane",1,"German MAK"]
[null,"Hexane, isomers, other than n-hexane",1,"SCOEL "]
[null,"Cyclohexane",1,"HSPA Values"]
[null,"n-Hexane",1,"Revised Recommendations"]
["C7 - C8 Aliphatics Group Guidance Value",null,1,"None"]
[null,"Heptane, all isomers",1]
[null,"Methyl cyclohexane",1]
[null,"Octane, all isomers",1]
["C9 - C15 Aliphatics Group Guidance Value",null,1]
[null,"n-Nonane",1]
[null,"Decalin",1]
["C7 - C8 Aromatics Group Guidance Value",null,1]
[null,"Toluene",1]
[null,"Xylene, all isomers",1]
[null,"Ethyl benzene",1]
["C9 - C15 Aromatics Group Guidance Value",null,1]
[null,"Trimethyl benzene, all isomers",1]
[null,"Naphthalene",1]
[null,"Cumene",1]
[null,"1- and 2 -methyl naphthalene",1]
[null,"Diethyl benzenes (AIHA WEEL)",1]
[null,"Tetralin",1]
[null,"n-butylbenzene",1]
[null,"Acenaphthene",1]
[null,"Acenaphthylene",1]
[null,"Biphenyl",1]
[null,"Indene",1]
[null,"Fluorene",1]
["Additional Values (Company Specific, if Applicable)"]
[null,"Other Chemical 1"]
[null,"Other Chemical 2"]
[null,"Other Chemical 3"]
[null,"Other Chemical 4"]

{"sheet":"Raoult's law Calculator","index":4,"n_rows":11,"n_cols":18,"rows_kept":11,"cut":false,"hidden":false,"merged":[]}
[]
[]
[]
[]
[null,null,null,null,null,null,null,null,"kPa"]
[]
[null,null,null,null,null,null,null,null,"kPa",null,null,null,null,null,null,null,{"$f":"IF(OR(H9=0,H5=0),\"\",(((H9/100)*H5)*1000000)/101.3)","v":""},"ppm"]
[]
[null,null,null,null,null,null,null,null,"%",null,null,null,null,null,null,null,{"$f":"IF(OR(Q7=0,H7=0),\"\",(Q7*H11)/((H7*1000000)/101.3))","v":""},"mg/m3"]
[]
[null,null,null,null,null,null,null,null,"mg/m3"]

{"sheet":"Revision Log","index":5,"n_rows":2,"n_cols":4,"rows_kept":2,"cut":false,"hidden":false,"merged":[]}
["Review Date","Summary of Changes","Name","Affiliation"]
["2018-06-07","German OEL values upated in calculations.  ACGIH rounding guidance upated in calculations to round to the nearest 200 (previously 100) when OEL is great than 600.  Revision Log added to spreadsheet","Jennifer Foreman","ExxonMobil Biomedical Sciences, Inc."]